fUSD/lending_fUSD_20240319
["ID","MTS","AMOUNT","RATE_DAILY","PERIOD"]
[319607818,1710885213887,-22991.35,0.00035616,5]
[319607819,1710885213896,-3473.42,0.00035616,5]
[319607820,1710885213908,-4026.93,0.00035616,5]
[319607821,1710885213919,-805.12,0.00035616,5]
[319607822,1710885213930,-981.11,0.00035616,5]
[319607823,1710885213941,-877.4,0.00035616,5]
[319607824,1710885213951,-1121.88,0.00035616,5]
[319607825,1710885213963,-12965.17,0.00035616,5]
[319607826,1710885213974,-836.09,0.00035616,5]
[319607827,1710885213985,-8047.18,0.00035616,5]
[319607828,1710885213994,-4640.74,0.00035616,5]
[319607829,1710885214004,-6661.58,0.00035616,5]
[319607830,1710885214014,-720.32,0.00035616,5]
[319607831,1710885214024,-507.15300025,0.00035616,5]
[319607832,1710885214034,-3306.12,0.00035616,5]
[319607833,1710885214044,-1406.25,0.00035616,5]
[319607834,1710885214054,-603.58,0.00035616,5]
[319607835,1710885214063,-1438.11,0.00035616,5]
[319607836,1710885214073,-6333.98,0.00035616,5]
[319607837,1710885214082,-2692.37,0.00035616,5]
[319607838,1710885214092,-614.48,0.00035616,5]
[319607839,1710885214101,-26854.72,0.00035616,5]
[319607840,1710885214111,-2847.31,0.00035616,5]
[319607841,1710885214121,-1953.31,0.00035616,5]
[319607842,1710885214131,-1298.71,0.00035616,5]
[319607843,1710885214141,-521.8,0.00035616,5]
[319607844,1710885214152,-972.96,0.00035616,5]
[319607845,1710885214162,-599.79,0.00035616,5]
[319607846,1710885214171,-1902.54,0.00035616,5]
[319607847,1710885214180,-673.97,0.00035616,5]
[319607848,1710885214189,-649.62,0.00035616,5]
[319607849,1710885214201,-26670.31,0.00035616,5]
[319607850,1710885214212,-5843.77,0.00035616,5]
[319607851,1710885214222,-691.9,0.00035616,5]
[319607852,1710885214232,-1828.95,0.00035616,5]
[319607853,1710885214243,-1109.32,0.00035616,5]
[319607854,1710885214254,-1199.84,0.00035616,5]
[319607855,1710885214264,-175.52796,0.00035616,14]
[319607856,1710885214274,-500.0,0.00035616,8]
[319607857,1710885214285,-266.38,0.00035729,120]
[319607858,1710885214295,-397.15,0.00035835,2]
[319607859,1710885214306,-1375.0,0.00035835,2]
[319607860,1710885214316,-959.0,0.00035835,2]
[319607861,1710885214326,-457.0,0.00035835,2]
[319607862,1710885214336,-536.0,0.00035835,2]
[319607863,1710885214348,-797.125,0.00035835,2]
[319607864,1710885214358,-278.0,0.00035835,2]
[319607865,1710885214368,-603.0,0.00035835,2]
[319607866,1710885214378,-882.942,0.00035835,2]
[319607867,1710885214388,-165.317,0.00035835,2]
[319607868,1710885214399,-432.0,0.00035835,2]
[319607869,1710885214409,-1094.152,0.00035835,2]
[319607870,1710885214419,-150.0,0.00035835,2]
[319607871,1710885214429,-1455.0,0.00035835,2]
[319607872,1710885214440,-1623.0,0.00035835,2]
[319607873,1710885214452,-213.0,0.00035835,2]
[319607874,1710885214462,-42890.0,0.00035835,2]
[319607875,1710885214473,-500.0,0.0003589,5]
[319607876,1710885214484,-1041.1,0.0003589,5]
[319607877,1710885214499,-905.92,0.0003589,5]
[319607878,1710885214509,-760.8,0.0003589,5]
[319607879,1710885214519,-918.16,0.0003589,5]
[319607880,1710885214530,-1354.5,0.0003589,5]
[319607881,1710885214540,-563.69,0.0003589,5]
[319607882,1710885214550,-553.29,0.0003589,5]
[319607883,1710885214560,-576.34,0.0003589,5]
[319607884,1710885214571,-628.41,0.0003589,5]
[319607885,1710885214581,-620.13,0.0003589,5]
[319607886,1710885214592,-786.01,0.0003589,5]
[319607887,1710885214603,-865.28,0.0003589,5]
[319607888,1710885214614,-964.89,0.0003589,5]
[319607889,1710885214625,-564.61,0.0003589,5]
[319607890,1710885214635,-529.43,0.0003589,5]
[319607891,1710885214645,-618.58,0.0003589,5]
[319607892,1710885214655,-563.52,0.0003589,5]
[319607893,1710885214666,-2015.12,0.0003589,5]
[319607894,1710885214676,-631.9,0.0003589,5]
[319607895,1710885214686,-681.13,0.0003589,5]
[319607896,1710885214698,-1086.99,0.0003589,5]
[319607897,1710885214709,-652.31,0.0003589,5]
[319607898,1710885214719,-500.0,0.0003589,5]
[319607899,1710885214729,-1320.6,0.0003589,5]
[319607900,1710885214741,-1250.92,0.0003589,5]
[319607901,1710885214752,-1120.04,0.0003589,5]
[319607902,1710885214762,-500.0,0.0003589,5]
[319607903,1710885214771,-510.25,0.0003589,5]
[319607904,1710885214781,-921.3,0.0003589,5]
[319607905,1710885214792,-1041.72,0.0003589,5]
[319607906,1710885214802,-1043.25,0.0003589,5]
[319607907,1710885214811,-535.44,0.0003589,5]
[319607908,1710885214821,-500.0,0.0003589,5]
[319607909,1710885214830,-957.02,0.0003589,5]
[319607910,1710885214840,-549.6,0.0003589,5]
[319607911,1710885214850,-546.14,0.0003589,5]
[319607912,1710885214860,-983.01,0.0003589,5]
[319607913,1710885214869,-583.52,0.0003589,5]
[319607914,1710885214879,-502.25,0.0003589,5]
[319607915,1710885214889,-701.32,0.0003589,5]
[319607916,1710885214899,-845.97,0.0003589,5]
[319607917,1710885214909,-604.6,0.0003589,5]
[319607918,1710885214921,-626.44,0.0003589,5]
[319607919,1710885214932,-1296.65,0.0003589,5]
[319607920,1710885214942,-1134.53,0.0003589,5]
[319607921,1710885214954,-507.2,0.0003589,5]
[319607922,1710885214965,-783.57,0.0003589,5]
[319607923,1710885214976,-1022.89,0.0003589,5]
[319607924,1710885214986,-668.88,0.0003589,5]
[319607925,1710885214996,-597.77,0.0003589,5]
[319607926,1710885215007,-507.52632122,0.0003589,5]
[319607927,1710885215017,-1317.95,0.0003589,5]
[319607928,1710885215027,-1578.12,0.0003589,5]
[319607929,1710885215037,-706.81,0.0003589,5]
[319607930,1710885215048,-820.72,0.0003589,5]
[319607931,1710885215058,-511.35,0.0003589,5]
[319607932,1710885215070,-1159.47,0.0003589,5]
[319607933,1710885215080,-752.64,0.0003589,5]
[319607934,1710885215089,-1433.6,0.0003589,5]
[319607935,1710885215099,-203.93410493,0.0003589,5]
[319607936,1710885215111,-500.0,0.0003589,5]
[319607937,1710885215122,-1189.27,0.0003589,5]
[319607938,1710885215132,-500.0,0.0003589,5]
[319607939,1710885215142,-572.14,0.0003589,5]
[319607940,1710885215152,-1127.91,0.0003589,5]
[319607941,1710885215162,-729.46,0.0003589,5]
[319607942,1710885215172,-1199.62,0.0003589,5]
[319607943,1710885215182,-562.99,0.0003589,5]
[319607944,1710885215192,-786.3,0.0003589,5]
[319607945,1710885215204,-500.0,0.0003589,5]
[319607946,1710885215214,-1265.95,0.0003589,5]
[319607947,1710885215225,-580.29,0.0003589,5]
[319607948,1710885215235,-500.0,0.0003589,5]
[319607949,1710885215245,-718.68,0.0003589,5]
[319607950,1710885215256,-2136.15,0.0003589,5]
[319607951,1710885215266,-928.05,0.0003589,5]
[319607952,1710885215277,-500.0,0.0003589,5]
[319607953,1710885215287,-783.9,0.0003589,5]
[319607954,1710885215297,-1320.02,0.0003589,5]
[319607955,1710885215308,-1043.02,0.0003589,5]
[319607956,1710885215318,-802.08,0.0003589,5]
[319607957,1710885215328,-1028.49,0.0003589,5]
[319607958,1710885215338,-1179.51,0.0003589,5]
[319607959,1710885215349,-812.3,0.0003589,5]
[319607960,1710885215359,-1146.04,0.0003589,5]
[319607961,1710885215369,-1045.71,0.0003589,5]
[319607962,1710885215380,-530.67,0.0003589,5]
[319607963,1710885215391,-649.64,0.0003589,5]
[319607964,1710885215401,-500.0,0.0003589,5]
[319607965,1710885215411,-775.28,0.0003589,5]
[319607966,1710885215421,-897.58,0.0003589,5]
[319607967,1710885215431,-1675.73,0.0003589,5]
[319607968,1710885215442,-416.59564579,0.0003589,5]
[319607969,1710885215453,-937.79,0.0003589,5]
[319607970,1710885215463,-500.0,0.0003589,5]
[319607971,1710885215473,-734.15,0.0003589,5]
[319607972,1710885215488,-1431.93,0.0003589,5]
[319607973,1710885215498,-530.51,0.0003589,5]
[319607974,1710885215512,-1508.78,0.0003589,5]
[319607975,1710885215522,-500.0,0.0003589,5]
[319607976,1710885215533,-3024.0,0.0003589,5]
[319607977,1710885215543,-571.47,0.0003589,5]
[319607978,1710885215553,-621.71,0.0003589,5]
[319607979,1710885215564,-762.86,0.0003589,5]
[319607980,1710885215574,-538.79,0.0003589,5]
[319607981,1710885215583,-985.89,0.0003589,5]
[319607982,1710885215594,-1947.91,0.0003589,5]
[319607983,1710885215604,-863.2,0.0003589,5]
[319607984,1710885215614,-747.16,0.0003589,5]
[319607985,1710885215624,-538.79,0.0003589,5]
[319607986,1710885215634,-500.0,0.0003589,5]
[319607987,1710885215644,-772.61,0.0003589,5]
[319607988,1710885215654,-1767.34,0.0003589,5]
[319607989,1710885215664,-500.0,0.0003589,5]
[319607990,1710885215674,-1603.73,0.0003589,5]
[319607991,1710885215683,-892.48,0.0003589,5]
[319607992,1710885215693,-654.11,0.0003589,5]
[319607993,1710885215704,-1478.75,0.0003589,5]
[319607994,1710885215713,-1208.68,0.0003589,5]
[319607995,1710885215723,-1477.07,0.0003589,5]
[319607996,1710885215733,-1428.4,0.0003589,5]
[319607997,1710885215743,-526.9,0.0003589,5]
[319607998,1710885215753,-2930.57,0.0003589,5]
[319607999,1710885215763,-1084.77,0.0003589,5]
[319608000,1710885215773,-948.83,0.0003589,5]
[319608001,1710885215784,-1970.31,0.0003589,5]
[319608002,1710885215794,-748.56,0.0003589,5]
[319608003,1710885215804,-853.25,0.0003589,5]
[319608004,1710885215814,-1046.29,0.0003589,5]
[319608005,1710885215824,-608.95,0.0003589,5]
[319608006,1710885215834,-636.98,0.0003589,5]
[319608007,1710885215844,-1279.27,0.0003589,5]
[319608008,1710885215854,-1827.01,0.0003589,5]
[319608009,1710885215864,-1006.11,0.0003589,5]
[319608010,1710885215874,-500.0,0.0003589,5]
[319608011,1710885215884,-1949.93,0.0003589,5]
[319608012,1710885215894,-1192.24,0.0003589,5]
[319608013,1710885215904,-2813.53,0.0003589,5]
[319608014,1710885215914,-845.98,0.0003589,5]
[319608015,1710885215924,-1011.35,0.0003589,5]
[319608016,1710885216046,-1701.68,0.0003589,5]
[319608017,1710885216056,-1413.56,0.0003589,5]
[319608018,1710885216066,-671.21,0.0003589,5]
[319608019,1710885216075,-856.2,0.0003589,5]
[319608020,1710885216084,-2782.61,0.0003589,5]
[319608021,1710885216093,-1896.31,0.0003589,5]
[319608022,1710885216104,-609.95,0.0003589,5]
[319608023,1710885216113,-1536.94,0.0003589,5]
[319608024,1710885216123,-2552.49,0.0003589,5]
[319608025,1710885216132,-2081.49,0.0003589,5]
[319608026,1710885216142,-1715.16,0.0003589,5]
[319608027,1710885216152,-1266.65,0.0003589,5]
[319608028,1710885216162,-1645.88,0.0003589,5]
[319608029,1710885216172,-500.0,0.0003589,5]
[319608030,1710885216181,-578.09725353,0.0003589,5]
[319608031,1710885216191,-1784.06,0.0003589,5]
[319608032,1710885216201,-1425.44,0.0003589,5]
[319608033,1710885216210,-645.99,0.0003589,5]
[319608034,1710885216220,-856.99,0.0003589,5]
[319608035,1710885216230,-1899.37,0.0003589,5]
[319608036,1710885216240,-1509.6,0.0003589,5]
[319608037,1710885216250,-825.81,0.0003589,5]
[319608038,1710885216259,-539.999136,0.0003589,5]
[319608039,1710885216269,-1668.46,0.0003589,5]
[319608040,1710885216280,-1817.59,0.0003589,5]
[319608041,1710885216290,-612.56,0.0003589,5]
[319608042,1710885216300,-641.85,0.0003589,5]
[319608043,1710885216310,-3349.51,0.0003589,5]
[319608044,1710885216320,-1668.73,0.0003589,5]
[319608045,1710885216329,-2185.83,0.0003589,5]
[319608046,1710885216339,-1047.88,0.0003589,5]
[319608047,1710885216349,-709.8,0.0003589,5]
[319608048,1710885216359,-3189.82,0.0003589,5]
[319608049,1710885216369,-2131.99,0.0003589,5]
[319608050,1710885216379,-2548.99,0.0003589,5]
[319608051,1710885216389,-1717.39,0.0003589,5]
[319608052,1710885216400,-3499.12,0.0003589,5]
[319608053,1710885216410,-3366.11,0.0003589,5]
[319608054,1710885216420,-920.95,0.0003589,5]
[319608055,1710885216430,-1172.13,0.0003589,5]
[319608056,1710885216440,-762.14,0.0003589,5]
[319608057,1710885216450,-500.0,0.0003589,5]
[319608058,1710885216461,-651.81,0.0003589,5]
[319608059,1710885216470,-2755.73,0.0003589,5]
[319608060,1710885216480,-2171.26,0.0003589,5]
[319608061,1710885216492,-554.31,0.0003589,5]
[319608062,1710885216503,-913.38,0.0003589,5]
[319608063,1710885216513,-517.56,0.0003589,5]
[319608064,1710885216524,-1265.69,0.0003589,5]
[319608065,1710885216534,-576.05,0.0003589,5]
[319608066,1710885216543,-622.91,0.0003589,5]
[319608067,1710885216553,-2191.46,0.0003589,5]
[319608068,1710885216563,-1378.12,0.0003589,5]
[319608069,1710885216573,-832.3,0.0003589,5]
[319608070,1710885216583,-3259.21,0.0003589,5]
[319608071,1710885216593,-516.5,0.0003589,5]
[319608072,1710885216603,-500.0,0.0003589,5]
[319608073,1710885216612,-750.69,0.0003589,5]
[319608074,1710885216622,-6099.55,0.0003589,5]
[319608075,1710885216632,-705.53,0.0003589,5]
[319608076,1710885216641,-510.82,0.0003589,5]
[319608077,1710885216651,-583.59,0.0003589,5]
[319608078,1710885216661,-554.14,0.0003589,5]
[319608079,1710885216672,-1054.91,0.0003589,5]
[319608080,1710885216682,-1769.12,0.0003589,5]
[319608081,1710885216692,-758.11,0.0003589,5]
[319608082,1710885216703,-614.47,0.0003589,5]
[319608083,1710885216712,-565.83,0.0003589,5]
[319608084,1710885216723,-3031.48,0.0003589,5]
[319608085,1710885216733,-1793.05,0.0003589,5]
[319608086,1710885216742,-1813.36,0.0003589,5]
[319608087,1710885216752,-1781.25,0.0003589,5]
[319608088,1710885216762,-5948.25,0.0003589,5]
[319608089,1710885216773,-721.19,0.0003589,5]
[319608090,1710885216782,-2298.94,0.0003589,5]
[319608091,1710885216791,-1467.68,0.0003589,5]
[319608092,1710885216801,-2048.3,0.0003589,5]
[319608093,1710885216810,-740.6,0.0003589,5]
[319608094,1710885216820,-3725.64,0.0003589,5]
[319608095,1710885216829,-7446.28,0.0003589,5]
[319608096,1710885216838,-1639.61,0.0003589,5]
[319608097,1710885216848,-1176.01,0.0003589,5]
[319608098,1710885216858,-814.35,0.0003589,5]
[319608099,1710885216868,-1904.86,0.0003589,5]
[319608100,1710885216877,-531.89,0.0003589,5]
[319608101,1710885216886,-541.15,0.0003589,5]
[319608102,1710885216895,-505.23,0.0003589,5]
[319608103,1710885216905,-1726.69,0.0003589,5]
[319608104,1710885216914,-706.92,0.0003589,5]
[319608105,1710885216923,-1397.11,0.0003589,5]
[319608106,1710885216933,-644.74,0.0003589,5]
[319608107,1710885216942,-723.57,0.0003589,5]
[319608108,1710885216951,-2864.27,0.0003589,5]
[319608109,1710885216961,-2584.9,0.0003589,5]
[319608110,1710885216970,-6961.76,0.0003589,5]
[319608111,1710885216980,-915.89,0.0003589,5]
[319608112,1710885216989,-1043.19,0.0003589,5]
[319608113,1710885216998,-1045.63,0.0003589,5]
[319608114,1710885217007,-1312.85,0.0003589,5]
[319608115,1710885217017,-3736.86,0.0003589,5]
[319608116,1710885217025,-961.87,0.0003589,5]
[319608117,1710885217035,-1764.05,0.0003589,5]
[319608118,1710885217044,-838.02,0.0003589,5]
[319608119,1710885217053,-2820.33,0.0003589,5]
[319608120,1710885217062,-1302.7,0.0003589,5]
[319608121,1710885217071,-2171.52,0.0003589,5]
[319608122,1710885217081,-4792.93,0.0003589,5]
[319608123,1710885217090,-2181.61,0.0003589,5]
[319608124,1710885217099,-500.0,0.0003589,5]
[319608125,1710885217108,-1199.36,0.0003589,5]
[319608126,1710885217118,-501.95,0.0003589,5]
[319608127,1710885217126,-1621.75,0.0003589,5]
[319608128,1710885217135,-589.7,0.0003589,5]
[319608129,1710885217144,-855.86,0.0003589,5]
[319608130,1710885217153,-3227.64,0.0003589,5]
[319608131,1710885217162,-863.41,0.0003589,5]
[319608132,1710885217171,-2111.52,0.0003589,5]
[319608133,1710885217181,-2950.43,0.0003589,5]
[319608134,1710885217189,-5122.72,0.0003589,5]
[319608135,1710885217199,-824.14,0.0003589,5]
[319608136,1710885217208,-500.0,0.0003589,5]
[319608137,1710885217217,-10026.4,0.0003589,5]
[319608138,1710885217227,-565.71,0.0003589,5]
[319608139,1710885217236,-1033.05,0.0003589,5]
[319608140,1710885217245,-2275.12,0.0003589,5]
[319608141,1710885217254,-504.07,0.0003589,5]
[319608142,1710885217264,-589.59466477,0.0003589,5]
[319608143,1710885217273,-126732.2,0.0003589,5]
[319608144,1710885217283,-4852.56,0.0003589,5]
[319608145,1710885217292,-2937.74,0.0003589,5]
[319608146,1710885217301,-1976.68,0.0003589,5]
[319608147,1710885217311,-777.71,0.0003589,5]
[319608148,1710885217320,-1133.54,0.0003589,5]
[319608149,1710885217329,-2119.46,0.0003589,5]
[319608150,1710885217339,-624.36627393,0.0003589,5]
[319608151,1710885217348,-7711.4,0.0003589,5]
[319608152,1710885217357,-524.36,0.0003589,5]
[319608153,1710885217366,-7310.51,0.0003589,5]
[319608154,1710885217376,-506.13786479,0.0003589,5]
[319608155,1710885217386,-14442.37,0.0003589,5]
[319608156,1710885217396,-5376.56,0.0003589,5]
[319608157,1710885217406,-582.24,0.0003589,5]
[319608158,1710885217417,-4230.03,0.0003589,5]
[319608159,1710885217427,-751.89,0.0003589,5]
[319608160,1710885217437,-542.91,0.0003589,5]
[319608161,1710885217448,-1949.45,0.0003589,5]
[319608162,1710885217457,-5623.75,0.0003589,5]
[319608163,1710885217467,-1033.59,0.0003589,2]
[319608164,1710885217476,-825.5,0.0003589,5]
[319608165,1710885217487,-5877.04,0.0003589,5]
[319608166,1710885217500,-521.04,0.0003589,5]
[319608167,1710885217510,-503.31,0.0003589,5]
[319608168,1710885217519,-636.0,0.0003589,5]
[319608169,1710885217529,-3068.4,0.0003589,5]
[319608170,1710885217539,-2857.27,0.0003589,5]
[319608171,1710885217548,-155.19000001,0.0003589,5]
[319608172,1710885217558,-631.3,0.0003589,5]
[319608173,1710885217568,-2550.99,0.0003589,5]
[319608174,1710885217578,-814.62,0.0003589,5]
[319608175,1710885217587,-1149.73,0.0003589,5]
[319608176,1710885217597,-7487.75,0.0003589,5]
[319608177,1710885217606,-1638.18,0.0003589,5]
[319608178,1710885217615,-7814.4,0.0003589,5]
[319608179,1710885217624,-529.96,0.0003589,5]
[319608180,1710885217634,-594.04,0.0003589,5]
[319608181,1710885217643,-705.8,0.0003589,5]
[319608182,1710885217653,-3016.27,0.0003589,5]
[319608183,1710885217663,-38480.53,0.0003589,5]
[319608184,1710885217672,-968.19,0.0003589,5]
[319608185,1710885217682,-2988.01,0.0003589,5]
[319608186,1710885217692,-767.81,0.0003589,5]
[319608187,1710885217702,-3358.0,0.0003589,5]
[319608188,1710885217711,-2995.65,0.0003589,5]
[319608189,1710885217721,-2879.31,0.0003589,5]
[319608190,1710885217730,-3475.26,0.0003589,5]
[319608191,1710885217739,-817.64,0.0003589,5]
[319608192,1710885217748,-626.59,0.0003589,5]
[319608193,1710885217758,-1532.23,0.0003589,5]
[319608194,1710885217767,-1675.59,0.0003589,5]
[319608195,1710885217776,-1109.08,0.0003589,5]
[319608196,1710885217786,-1008.18,0.0003589,5]
[319608197,1710885217794,-1175.56,0.0003589,5]
[319608198,1710885217804,-2383.57,0.0003589,5]
[319608199,1710885217813,-1104.88,0.0003589,5]
[319608200,1710885217823,-6551.95,0.0003589,5]
[319608201,1710885217833,-20378.39,0.0003589,5]
[319608202,1710885217842,-3428.01,0.0003589,5]
[319608203,1710885217851,-724.41,0.0003589,5]
[319608204,1710885217861,-4023.07,0.0003589,5]
[319608205,1710885217871,-2691.76,0.0003589,5]
[319608206,1710885217880,-500.0,0.0003589,5]
[319608207,1710885217889,-518.98,0.0003589,5]
[319608208,1710885217899,-532.04,0.0003589,5]
[319608209,1710885217908,-3655.41,0.0003589,5]
[319608210,1710885217917,-3100.4,0.0003589,5]
[319608211,1710885217926,-1495.58,0.0003589,5]
[319608212,1710885217936,-5255.9,0.0003589,5]
[319608213,1710885217946,-532.61,0.0003589,5]
[319608214,1710885217955,-646.23,0.0003589,5]
[319608215,1710885217965,-856.3,0.0003589,5]
[319608216,1710885217974,-1919.76,0.0003589,5]
[319608217,1710885217983,-2848.19,0.0003589,5]
[319608218,1710885217992,-514.35,0.0003589,5]
[319608219,1710885218002,-917.99,0.0003589,5]
[319608220,1710885218011,-84885.72,0.0003589,5]
[319608221,1710885218020,-7528.25,0.0003589,5]
[319608222,1710885218028,-2075.6,0.0003589,5]
[319608223,1710885218038,-556.06,0.0003589,5]
[319608224,1710885218047,-500.0,0.0003589,5]
[319608225,1710885218056,-4053.66,0.0003589,5]
[319608226,1710885218065,-950.92,0.0003589,5]
[319608227,1710885218074,-1498.56,0.0003589,5]
[319608228,1710885218083,-6114.82,0.0003589,5]
[319608229,1710885218093,-1068.02,0.0003589,5]
[319608230,1710885218102,-1140.75,0.0003589,5]
[319608231,1710885218112,-1363.9,0.0003589,5]
[319608232,1710885218121,-680.37,0.0003589,5]
[319608233,1710885218130,-7331.78,0.0003589,5]
[319608234,1710885218139,-6608.67,0.0003589,5]
[319608235,1710885218148,-5255.76,0.0003589,5]
[319608236,1710885218157,-1065.89,0.0003589,5]
[319608237,1710885218167,-2244.41,0.0003589,5]
[319608238,1710885218176,-12679.11,0.0003589,5]
[319608239,1710885218185,-501.67,0.0003589,5]
[319608240,1710885218194,-1134.2,0.0003589,5]
[319608241,1710885218204,-535.13,0.0003589,5]
[319608242,1710885218213,-952.29,0.0003589,5]
[319608243,1710885218223,-16057.66,0.0003589,5]
[319608244,1710885218232,-5689.03,0.0003589,5]
[319608245,1710885218242,-9318.38,0.0003589,5]
[319608246,1710885218251,-6799.03,0.0003589,5]
[319608247,1710885218261,-4026.73,0.0003589,5]
[319608248,1710885218270,-3035.5,0.0003589,5]
[319608249,1710885218280,-3750.07,0.0003589,5]
[319608250,1710885218290,-661.71,0.0003589,5]
[319608251,1710885218299,-935.16,0.0003589,5]
[319608252,1710885218309,-6185.77,0.0003589,5]
[319608253,1710885218319,-1750.15,0.0003589,5]
[319608254,1710885218328,-507.49,0.0003589,5]
[319608255,1710885218338,-21984.05,0.0003589,5]
[319608256,1710885218348,-1656.75,0.0003589,5]
[319608257,1710885218357,-682.19,0.0003589,5]
[319608258,1710885218366,-3232.39,0.0003589,5]
[319608259,1710885218376,-4012.77,0.0003589,5]
[319608260,1710885218386,-5906.29,0.0003589,5]
[319608261,1710885218396,-2644.39,0.0003589,5]
[319608262,1710885218405,-1898.34,0.0003589,5]
[319608263,1710885218415,-860.9,0.0003589,5]
[319608264,1710885218424,-2450.74,0.0003589,5]
[319608265,1710885218433,-6356.12,0.0003589,5]
[319608266,1710885218443,-741.49,0.0003589,5]
[319608267,1710885218453,-988.62,0.0003589,5]
[319608268,1710885218463,-502.93,0.0003589,5]
[319608269,1710885218473,-3281.78,0.0003589,5]
[319608270,1710885218484,-10393.93,0.0003589,5]
[319608271,1710885218496,-887.69,0.0003589,5]
[319608272,1710885218505,-2054.31,0.0003589,5]
[319608273,1710885218514,-1073.2,0.0003589,5]
[319608274,1710885218524,-5676.82,0.0003589,5]
[319608275,1710885218534,-2336.1,0.0003589,5]
[319608276,1710885218543,-784.81,0.0003589,5]
[319608277,1710885218552,-958.78,0.0003589,5]
[319608278,1710885218562,-2928.09,0.0003589,5]
[319608279,1710885218573,-12462.52,0.0003589,5]
[319608280,1710885218582,-5305.03,0.0003589,5]
[319608281,1710885218591,-742.85,0.0003589,5]
[319608282,1710885218600,-360.20859924,0.0003589,5]
[319608283,1710885218610,-8000.71,0.0003589,5]
[319608284,1710885218619,-7424.85,0.0003589,5]
[319608285,1710885218628,-6273.21,0.0003589,5]
[319608286,1710885218637,-9028.78,0.0003589,5]
[319608287,1710885218646,-7152.27,0.0003589,5]
[319608288,1710885218655,-3248.64,0.0003589,5]
[319608289,1710885218665,-920.58,0.0003589,5]
[319608290,1710885218674,-603.25,0.0003589,5]
[319608291,1710885218683,-11402.88,0.0003589,5]
[319608292,1710885218692,-862.02,0.0003589,5]
[319608293,1710885218702,-5180.59,0.0003589,5]
[319608294,1710885218711,-1058.28,0.0003589,5]
[319608295,1710885218721,-6676.62,0.0003589,5]
[319608296,1710885218730,-50748.97,0.0003589,5]
[319608297,1710885218739,-12563.76,0.0003589,5]
[319608298,1710885218748,-4392.06,0.0003589,5]
[319608299,1710885218757,-947.45,0.0003589,5]
[319608300,1710885218767,-994.47,0.0003589,5]
[319608301,1710885218777,-1127.56,0.0003589,5]
[319608302,1710885218786,-6289.47,0.0003589,5]
[319608303,1710885218796,-431.64336446,0.0003589,5]
[319608304,1710885218806,-1554.32,0.0003589,5]
[319608305,1710885218816,-1563.9,0.0003589,5]
[319608306,1710885218826,-2538.59,0.0003589,5]
[319608307,1710885218835,-9279.39,0.0003589,5]
[319608308,1710885218845,-2973.35,0.0003589,5]
[319608309,1710885218854,-1071.73,0.0003589,5]
[319608310,1710885218864,-1557.91,0.0003589,5]
[319608311,1710885218873,-921.84,0.0003589,5]
[319608312,1710885218882,-1497.67,0.0003589,5]
[319608313,1710885218891,-5460.3,0.0003589,5]
[319608314,1710885218901,-549.68,0.0003589,5]
[319608315,1710885218910,-500.0,0.0003589,5]
[319608316,1710885218919,-866.95,0.0003589,5]
[319608317,1710885218929,-293.2979437,0.0003589,5]